[Event "Titled Tuesday Blitz August 15 Early 2023"]
[White "Kosteniuk, Alexandra"]
[Black "Grossboss19"]
[WhiteFideId "4128125"]
[WhiteElo "2739"]
[BlackElo "2545"]
[Result "1-0"]
[Round "5"]
[TimeControl "180+1"]
[Date "2023.08.15"]
[WhiteClock "0:00:09"]
[BlackClock "0:00:03"]
[Board "71"]

1. d4 {[%clk 0:03:00]}  d5 {[%clk 0:02:59]} 2. Nf3 {[%clk 0:03:00]}  Nf6 {[%clk 0:02:57]} 3. c4 {[%clk 0:03:00]}  e6 {[%clk 0:02:55]} 4. Nc3 {[%clk 0:03:00]}  Be7 {[%clk 0:02:49]} 5. cxd5 {[%clk 0:02:57]}  exd5 {[%clk 0:02:47]} 6. Bg5 {[%clk 0:02:57]}  c6 {[%clk 0:02:46]} 7. e3 {[%clk 0:02:57]}  h6 {[%clk 0:02:45]} 8. Bh4 {[%clk 0:02:56]}  O-O {[%clk 0:02:44]} 9. Bd3 {[%clk 0:02:55]}  Re8 {[%clk 0:02:44]} 10. O-O {[%clk 0:02:52]}  Ne4 {[%clk 0:02:34]} 11. Bxe4 {[%clk 0:02:35]}  Bxh4 {[%clk 0:02:16]} 12. Bc2 {[%clk 0:02:31]}  Bf6 {[%clk 0:02:14]} 13. b4 {[%clk 0:02:29]}  a6 {[%clk 0:02:12]} 14. a4 {[%clk 0:02:29]}  Bg4 {[%clk 0:02:04]} 15. Ne2 {[%clk 0:01:59]}  Bxf3 {[%clk 0:01:53]} 16. gxf3 {[%clk 0:01:59]}  Nd7 {[%clk 0:01:53]} 17. Kh1 {[%clk 0:01:58]}  Qe7 {[%clk 0:01:37]} 18. Rg1 {[%clk 0:01:57]}  Nf8 {[%clk 0:01:28]} 19. Rb1 {[%clk 0:01:55]}  Ne6 {[%clk 0:01:24]} 20. Qd3 {[%clk 0:01:51]}  g6 {[%clk 0:01:11]} 21. f4 {[%clk 0:01:48]}  Ng7 {[%clk 0:01:09]} 22. Ng3 {[%clk 0:01:44]}  Kh8 {[%clk 0:01:04]} 23. Rb3 {[%clk 0:01:35]}  Qd7 {[%clk 0:00:58]} 24. Rgb1 {[%clk 0:01:31]}  h5 {[%clk 0:00:50]} 25. Qf1 {[%clk 0:01:17]}  h4 {[%clk 0:00:48]} 26. Ne2 {[%clk 0:01:17]}  Qg4 {[%clk 0:00:44]} 27. Ng1 {[%clk 0:01:11]}  Re7 {[%clk 0:00:25]} 28. Qg2 {[%clk 0:01:09]}  Qxg2+ {[%clk 0:00:25]} 29. Kxg2 {[%clk 0:01:10]}  Ne8 {[%clk 0:00:25]} 30. Nf3 {[%clk 0:01:08]}  Nd6 {[%clk 0:00:23]} 31. Ne1 {[%clk 0:00:58]}  Nc4 {[%clk 0:00:21]} 32. Rd1 {[%clk 0:00:57]}  b5 {[%clk 0:00:20]} 33. Rc3 {[%clk 0:00:48]}  Ree8 {[%clk 0:00:18]} 34. Nd3 {[%clk 0:00:48]}  Be7 {[%clk 0:00:18]} 35. Rb1 {[%clk 0:00:42]}  f6 {[%clk 0:00:17]} 36. Ne1 {[%clk 0:00:36]}  Kg7 {[%clk 0:00:16]} 37. Nf3 {[%clk 0:00:36]}  Rh8 {[%clk 0:00:16]} 38. Kh3 {[%clk 0:00:34]}  Kf7 {[%clk 0:00:13]} 39. Rcb3 {[%clk 0:00:31]}  g5 {[%clk 0:00:10]} 40. fxg5 {[%clk 0:00:27]}  fxg5 {[%clk 0:00:11]} 41. Ne5+ {[%clk 0:00:20]}  Nxe5 {[%clk 0:00:10]} 42. dxe5 {[%clk 0:00:21]}  Ke6 {[%clk 0:00:10]} 43. f4 {[%clk 0:00:21]}  gxf4 {[%clk 0:00:10]} 44. exf4 {[%clk 0:00:22]}  Rhf8 {[%clk 0:00:09]} 45. Rf3 {[%clk 0:00:20]}  Rab8 {[%clk 0:00:06]} 46. Rc1 {[%clk 0:00:14]}  Bxb4 {[%clk 0:00:04]} 47. Bg6 {[%clk 0:00:14]}  c5 {[%clk 0:00:03]} 48. axb5 {[%clk 0:00:14]}  axb5 {[%clk 0:00:03]} 49. Kxh4 {[%clk 0:00:10]}  d4 {[%clk 0:00:03]} 50. Kg5 {[%clk 0:00:09]}  c4 {[%clk 0:00:04]} 51. Rd1 {[%clk 0:00:08]}  d3 {[%clk 0:00:04]} 52. Re3 {[%clk 0:00:07]}  Be7+ {[%clk 0:00:04]} 53. Kg4 {[%clk 0:00:06]}  Kd5 {[%clk 0:00:04]} 54. f5 {[%clk 0:00:06]}  Kd4 {[%clk 0:00:04]} 55. Kf3 {[%clk 0:00:06]}  Bg5 {[%clk 0:00:04]} 56. Re4+ {[%clk 0:00:06]}  Kd5 {[%clk 0:00:05]} 57. e6 {[%clk 0:00:06]}  Bf6 {[%clk 0:00:04]} 58. e7 {[%clk 0:00:06]}  Rh8 {[%clk 0:00:04]} 59. e8=Q {[%clk 0:00:06]}  Rbxe8 {[%clk 0:00:04]} 60. Rxe8 {[%clk 0:00:06]}  Rxh2 {[%clk 0:00:04]} 61. Rb8 {[%clk 0:00:04]}  Kc5 {[%clk 0:00:04]} 62. Rc8+ {[%clk 0:00:04]}  Kd4 {[%clk 0:00:04]} 63. Rc6 {[%clk 0:00:04]}  Be5 {[%clk 0:00:03]} 64. Rb6 {[%clk 0:00:04]}  Kc5 {[%clk 0:00:03]} 65. Re6 {[%clk 0:00:04]}  Kd5 {[%clk 0:00:03]} 66. Re8 {[%clk 0:00:04]}  Rh3+ {[%clk 0:00:03]} 67. Kg4 {[%clk 0:00:04]}  Rh2 {[%clk 0:00:03]} 68. Rd8+ {[%clk 0:00:03]}  Kc5 {[%clk 0:00:03]} 69. Re8 {[%clk 0:00:03]}  Kd4 {[%clk 0:00:04]} 70. Rd8+ {[%clk 0:00:03]}  Kc3 {[%clk 0:00:03]} 71. Re1 {[%clk 0:00:03]}  Bd4 {[%clk 0:00:02]} 72. Re4 {[%clk 0:00:03]}  Bc5 {[%clk 0:00:02]} 73. f6 {[%clk 0:00:03]}  Rf2 {[%clk 0:00:01]} 74. f7 {[%clk 0:00:03]}  d2 {[%clk 0:00:02]} 75. Re5 {[%clk 0:00:03]}  Bb4 {[%clk 0:00:03]} 76. Red5 {[%clk 0:00:03]}  Kb2 {[%clk 0:00:02]} 77. Rxd2+ {[%clk 0:00:04]}  Bxd2 {[%clk 0:00:01]} 78. Rxd2+ {[%clk 0:00:04]}  Rxd2 {[%clk 0:00:02]} 79. f8=Q {[%clk 0:00:05]}  c3 {[%clk 0:00:03]} 80. Qb4+ {[%clk 0:00:05]}  Kc1 {[%clk 0:00:03]} 81. Qxc3+ {[%clk 0:00:06]}  Kd1 {[%clk 0:00:04]} 82. Qb3+ {[%clk 0:00:06]}  Ke1 {[%clk 0:00:03]} 83. Qb1+ {[%clk 0:00:06]}  Kf2 {[%clk 0:00:03]} 84. Qxb5 {[%clk 0:00:07]}  Rd4+ {[%clk 0:00:03]} 85. Kf5 {[%clk 0:00:08]}  Rd2 {[%clk 0:00:04]} 86. Qc5+ {[%clk 0:00:08]}  Ke1 {[%clk 0:00:04]} 87. Ke4 {[%clk 0:00:08]}  Re2+ {[%clk 0:00:04]} 88. Kf4 {[%clk 0:00:08]}  Rf2+ {[%clk 0:00:04]} 89. Kg3 {[%clk 0:00:08]}  Re2 {[%clk 0:00:03]} 90. Qc1# {[%clk 0:00:09]} 1-0


[Site "https://www.chess.com"]

[Event "Titled Tuesday Blitz August 15 Early 2023"]
[White "Vaibhav, Suri"]
[Black "Shishkov, Andrei"]
[WhiteFideId "5045185"]
[BlackFideId "4500563"]
[WhiteElo "2712"]
[BlackElo "2520"]
[Result "0-1"]
[Round "5"]
[TimeControl "180+1"]
[Date "2023.08.15"]
[WhiteClock "0:00:07"]
[BlackClock "0:00:10"]
[Board "73"]

1. d4 {[%clk 0:02:55]}  Nf6 {[%clk 0:02:59]} 2. Bf4 {[%clk 0:02:55]}  d5 {[%clk 0:02:59]} 3. e3 {[%clk 0:02:55]}  c5 {[%clk 0:02:59]} 4. Nd2 {[%clk 0:02:54]}  Nc6 {[%clk 0:02:52]} 5. Ngf3 {[%clk 0:02:47]}  Qb6 {[%clk 0:02:50]} 6. dxc5 {[%clk 0:02:47]}  Qxb2 {[%clk 0:02:51]} 7. Rb1 {[%clk 0:02:45]}  Qc3 {[%clk 0:02:50]} 8. Bb5 {[%clk 0:02:46]}  Bd7 {[%clk 0:02:48]} 9. O-O {[%clk 0:02:46]}  e6 {[%clk 0:02:48]} 10. Nb3 {[%clk 0:02:43]}  Be7 {[%clk 0:02:23]} 11. Bxc6 {[%clk 0:02:37]}  Bxc6 {[%clk 0:02:17]} 12. Be5 {[%clk 0:02:27]}  Qc4 {[%clk 0:02:17]} 13. Nfd4 {[%clk 0:02:21]}  O-O {[%clk 0:01:59]} 14. Nxc6 {[%clk 0:01:50]}  bxc6 {[%clk 0:01:58]} 15. Qd4 {[%clk 0:01:51]}  a5 {[%clk 0:01:46]} 16. Qxc4 {[%clk 0:01:36]}  dxc4 {[%clk 0:01:47]} 17. Nd2 {[%clk 0:01:34]}  Bxc5 {[%clk 0:01:38]} 18. Nxc4 {[%clk 0:01:33]}  Nd5 {[%clk 0:01:11]} 19. Rb7 {[%clk 0:01:22]}  f6 {[%clk 0:01:08]} 20. Bd4 {[%clk 0:01:13]}  Bxd4 {[%clk 0:01:04]} 21. exd4 {[%clk 0:01:14]}  Rf7 {[%clk 0:00:56]} 22. Rfb1 {[%clk 0:01:11]}  Nb4 {[%clk 0:00:57]} 23. Rxf7 {[%clk 0:01:02]}  Kxf7 {[%clk 0:00:58]} 24. c3 {[%clk 0:00:55]}  Nxa2 {[%clk 0:00:53]} 25. Rb3 {[%clk 0:00:55]}  a4 {[%clk 0:00:51]} 26. Ra3 {[%clk 0:00:55]}  Nc1 {[%clk 0:00:51]} 27. Kf1 {[%clk 0:00:54]}  Rb8 {[%clk 0:00:33]} 28. Rxa4 {[%clk 0:00:48]}  Rb1 {[%clk 0:00:34]} 29. g3 {[%clk 0:00:43]}  Na2+ {[%clk 0:00:30]} 30. Kg2 {[%clk 0:00:43]}  Nxc3 {[%clk 0:00:31]} 31. Ra7+ {[%clk 0:00:42]}  Kg6 {[%clk 0:00:30]} 32. Nd6 {[%clk 0:00:42]}  Nb5 {[%clk 0:00:25]} 33. Rb7 {[%clk 0:00:40]}  Rd1 {[%clk 0:00:20]} 34. Ne8 {[%clk 0:00:39]}  Nxd4 {[%clk 0:00:17]} 35. Rxg7+ {[%clk 0:00:39]}  Kh6 {[%clk 0:00:17]} 36. Rf7 {[%clk 0:00:36]}  f5 {[%clk 0:00:16]} 37. Rf6+ {[%clk 0:00:32]}  Kg5 {[%clk 0:00:12]} 38. h4+ {[%clk 0:00:33]}  Kh5 {[%clk 0:00:11]} 39. Ng7+ {[%clk 0:00:33]}  Kg4 {[%clk 0:00:11]} 40. f3+ {[%clk 0:00:08]}  Nxf3 {[%clk 0:00:11]} 41. Nxe6 {[%clk 0:00:08]}  Rd2+ {[%clk 0:00:10]} 42. Kf1 {[%clk 0:00:07]}  Kxg3 {[%clk 0:00:10]} 0-1


[Site "https://www.chess.com"]

[Event "Titled Tuesday Blitz August 15 Early 2023"]
[White "Yashmetov, Mikhail"]
[Black "Shyam, Sundar M."]
[WhiteFideId "24198900"]
[BlackFideId "5019141"]
[WhiteElo "2494"]
[BlackElo "2696"]
[Result "0-1"]
[Round "5"]
[TimeControl "180+1"]
[Date "2023.08.15"]
[WhiteClock "0:00:01"]
[BlackClock "0:00:56"]
[Board "75"]

1. d4 {[%clk 0:02:59]}  d5 {[%clk 0:02:58]} 2. c4 {[%clk 0:02:59]}  e6 {[%clk 0:02:58]} 3. g3 {[%clk 0:02:59]}  Nf6 {[%clk 0:02:58]} 4. Bg2 {[%clk 0:02:59]}  Bb4+ {[%clk 0:02:58]} 5. Bd2 {[%clk 0:02:58]}  Be7 {[%clk 0:02:59]} 6. Nf3 {[%clk 0:02:58]}  Ne4 {[%clk 0:02:59]} 7. O-O {[%clk 0:02:55]}  c6 {[%clk 0:03:00]} 8. b3 {[%clk 0:02:55]}  f5 {[%clk 0:02:58]} 9. Bc1 {[%clk 0:02:55]}  h5 {[%clk 0:02:58]} 10. Ba3 {[%clk 0:02:49]}  g5 {[%clk 0:02:43]} 11. Bxe7 {[%clk 0:02:45]}  Qxe7 {[%clk 0:02:44]} 12. Nbd2 {[%clk 0:02:40]}  Nd7 {[%clk 0:02:42]} 13. Nxe4 {[%clk 0:02:21]}  fxe4 {[%clk 0:02:40]} 14. Ne5 {[%clk 0:02:21]}  Nxe5 {[%clk 0:02:38]} 15. dxe5 {[%clk 0:02:20]}  h4 {[%clk 0:02:39]} 16. Qd2 {[%clk 0:02:07]}  Bd7 {[%clk 0:02:36]} 17. Rad1 {[%clk 0:02:03]}  O-O-O {[%clk 0:02:36]} 18. Qa5 {[%clk 0:02:02]}  Kb8 {[%clk 0:02:35]} 19. b4 {[%clk 0:01:53]}  hxg3 {[%clk 0:02:33]} 20. fxg3 {[%clk 0:01:24]}  Qh7 {[%clk 0:02:26]} 21. h3 {[%clk 0:01:22]}  Qg7 {[%clk 0:02:25]} 22. Rf6 {[%clk 0:00:53]}  Bc8 {[%clk 0:01:42]} 23. Bxe4 {[%clk 0:00:40]}  b6 {[%clk 0:01:33]} 24. Qa4 {[%clk 0:00:32]}  dxe4 {[%clk 0:01:32]} 25. Rxd8 {[%clk 0:00:30]}  Rxd8 {[%clk 0:01:33]} 26. Qxc6 {[%clk 0:00:30]}  Qe7 {[%clk 0:01:12]} 27. c5 {[%clk 0:00:24]}  bxc5 {[%clk 0:01:11]} 28. bxc5 {[%clk 0:00:24]}  e3 {[%clk 0:01:11]} 29. a4 {[%clk 0:00:11]}  Bb7 {[%clk 0:01:09]} 30. Qb5 {[%clk 0:00:08]}  Rd1+ {[%clk 0:01:06]} 31. Rf1 {[%clk 0:00:07]}  Qf8 {[%clk 0:00:53]} 32. Qxb7+ {[%clk 0:00:02]}  Kxb7 {[%clk 0:00:54]} 33. Rxd1 {[%clk 0:00:03]}  Qf2+ {[%clk 0:00:55]} 34. Kh1 {[%clk 0:00:03]}  Qxe2 {[%clk 0:00:55]} 35. Rg1 {[%clk 0:00:03]}  Qf3+ {[%clk 0:00:55]} 36. Rg2 {[%clk 0:00:01]}  e2 {[%clk 0:00:56]} 0-1


[Site "https://www.chess.com"]

[Event "Titled Tuesday Blitz August 15 Early 2023"]
[White "Maltsevskaya, Aleksandra"]
[Black "Toktomushev, Teimur"]
[WhiteFideId "24174041"]
[BlackFideId "14176726"]
[WhiteElo "2679"]
[BlackElo "2438"]
[Result "1-0"]
[Round "5"]
[TimeControl "180+1"]
[Date "2023.08.15"]
[WhiteClock "0:00:07"]
[BlackClock "0:00:00"]
[Board "78"]

1. Nf3 {[%clk 0:02:25]}  d5 {[%clk 0:02:59]} 2. g3 {[%clk 0:02:26]}  Nf6 {[%clk 0:02:59]} 3. Bg2 {[%clk 0:02:25]}  e6 {[%clk 0:03:00]} 4. O-O {[%clk 0:02:26]}  Be7 {[%clk 0:03:00]} 5. d3 {[%clk 0:02:27]}  O-O {[%clk 0:03:00]} 6. Nbd2 {[%clk 0:02:27]}  c5 {[%clk 0:02:58]} 7. e4 {[%clk 0:02:27]}  Nc6 {[%clk 0:02:59]} 8. exd5 {[%clk 0:02:28]}  exd5 {[%clk 0:02:49]} 9. d4 {[%clk 0:02:27]}  Bg4 {[%clk 0:02:46]} 10. h3 {[%clk 0:02:26]}  Bh5 {[%clk 0:02:46]} 11. dxc5 {[%clk 0:02:23]}  Bxc5 {[%clk 0:02:45]} 12. c3 {[%clk 0:02:23]}  Re8 {[%clk 0:02:35]} 13. Nb3 {[%clk 0:02:23]}  Bb6 {[%clk 0:02:35]} 14. a4 {[%clk 0:02:24]}  a6 {[%clk 0:02:34]} 15. Bg5 {[%clk 0:02:21]}  Ne5 {[%clk 0:01:40]} 16. a5 {[%clk 0:02:08]}  Ba7 {[%clk 0:01:33]} 17. Nbd4 {[%clk 0:02:04]}  h6 {[%clk 0:01:28]} 18. Bf4 {[%clk 0:02:02]}  Nc6 {[%clk 0:00:52]} 19. Nxc6 {[%clk 0:01:43]}  bxc6 {[%clk 0:00:53]} 20. g4 {[%clk 0:01:44]}  Bg6 {[%clk 0:00:53]} 21. Ne5 {[%clk 0:01:44]}  Re6 {[%clk 0:00:14]} 22. Nxg6 {[%clk 0:01:41]}  fxg6 {[%clk 0:00:15]} 23. Qd3 {[%clk 0:01:41]}  g5 {[%clk 0:00:09]} 24. Bg3 {[%clk 0:01:28]}  Ne4 {[%clk 0:00:08]} 25. Rae1 {[%clk 0:01:19]}  Nxg3 {[%clk 0:00:05]} 26. Rxe6 {[%clk 0:01:00]}  Nxf1 {[%clk 0:00:06]} 27. Qxf1 {[%clk 0:00:59]}  Qd7 {[%clk 0:00:04]} 28. Qe2 {[%clk 0:00:59]}  Rf8 {[%clk 0:00:04]} 29. Re7 {[%clk 0:00:56]}  Bxf2+ {[%clk 0:00:02]} 30. Kh1 {[%clk 0:00:54]}  Qd6 {[%clk 0:00:03]} 31. Qe6+ {[%clk 0:00:52]}  Qxe6 {[%clk 0:00:03]} 32. Rxe6 {[%clk 0:00:52]}  Rb8 {[%clk 0:00:02]} 33. Rxc6 {[%clk 0:00:51]}  Rxb2 {[%clk 0:00:02]} 34. Bxd5+ {[%clk 0:00:51]}  Kh7 {[%clk 0:00:01]} 35. Rc8 {[%clk 0:00:44]}  g6 {[%clk 0:00:01]} 36. Rc7+ {[%clk 0:00:42]}  Kh8 {[%clk 0:00:02]} 37. Rc6 {[%clk 0:00:42]}  Be1 {[%clk 0:00:02]} 38. Rxa6 {[%clk 0:00:32]}  Bxc3 {[%clk 0:00:01]} 39. Ra8+ {[%clk 0:00:32]}  Kg7 {[%clk 0:00:01]} 40. a6 {[%clk 0:00:33]}  Rb1+ {[%clk 0:00:01]} 41. Kg2 {[%clk 0:00:32]}  Ra1 {[%clk 0:00:02]} 42. Bc4 {[%clk 0:00:24]}  Kf6 {[%clk 0:00:01]} 43. a7 {[%clk 0:00:22]}  Ke7 {[%clk 0:00:01]} 44. Bb5 {[%clk 0:00:07]}  Bd4 {[%clk 0:00:02]} 45. Re8+ {[%clk 0:00:07]}  Kf7 {[%clk 0:00:03]} 46. a8=Q {[%clk 0:00:08]}  Rg1+ {[%clk 0:00:00]} 47. Kf3 {[%clk 0:00:07]} 1-0


[Site "https://www.chess.com"]

[Event "Titled Tuesday Blitz August 15 Early 2023"]
[White "Haug, Havard"]
[Black "Luong Phuong Hanh"]
[WhiteFideId "1547887"]
[BlackFideId "12401013"]
[WhiteElo "2668"]
[BlackElo "2424"]
[Result "1-0"]
[Round "5"]
[TimeControl "180+1"]
[Date "2023.08.15"]
[WhiteClock "0:00:37"]
[BlackClock "0:00:04"]
[Board "79"]

1. e4 {[%clk 0:03:00]}  c5 {[%clk 0:02:35]} 2. c3 {[%clk 0:02:58]}  Nf6 {[%clk 0:02:34]} 3. e5 {[%clk 0:02:35]}  Nd5 {[%clk 0:02:29]} 4. Nf3 {[%clk 0:02:34]}  Nc6 {[%clk 0:02:27]} 5. Bc4 {[%clk 0:02:31]}  Nb6 {[%clk 0:02:26]} 6. Bb3 {[%clk 0:02:30]}  d5 {[%clk 0:02:26]} 7. exd6 {[%clk 0:02:29]}  Qxd6 {[%clk 0:02:24]} 8. d4 {[%clk 0:02:29]}  cxd4 {[%clk 0:02:23]} 9. cxd4 {[%clk 0:02:26]}  g6 {[%clk 0:02:23]} 10. Nc3 {[%clk 0:02:25]}  Bg7 {[%clk 0:02:23]} 11. Be3 {[%clk 0:02:24]}  O-O {[%clk 0:02:23]} 12. h3 {[%clk 0:02:22]}  Bf5 {[%clk 0:02:22]} 13. O-O {[%clk 0:02:19]}  Rad8 {[%clk 0:02:21]} 14. Qe2 {[%clk 0:02:12]}  Nb4 {[%clk 0:02:15]} 15. Rad1 {[%clk 0:02:08]}  N4d5 {[%clk 0:02:15]} 16. Bg5 {[%clk 0:02:00]}  Rfe8 {[%clk 0:02:09]} 17. Bh4 {[%clk 0:01:59]}  Nxc3 {[%clk 0:01:28]} 18. bxc3 {[%clk 0:01:58]}  Nd5 {[%clk 0:01:29]} 19. Qd2 {[%clk 0:01:53]}  Nf6 {[%clk 0:01:04]} 20. Bg3 {[%clk 0:01:52]}  Qa6 {[%clk 0:01:02]} 21. Rfe1 {[%clk 0:01:41]}  Ne4 {[%clk 0:01:01]} 22. Rxe4 {[%clk 0:01:40]}  Bxe4 {[%clk 0:00:59]} 23. Bxf7+ {[%clk 0:01:41]}  Kxf7 {[%clk 0:00:59]} 24. Ng5+ {[%clk 0:01:41]}  Kg8 {[%clk 0:01:00]} 25. Nxe4 {[%clk 0:01:41]}  Qc4 {[%clk 0:00:53]} 26. Qg5 {[%clk 0:01:06]}  Qe2 {[%clk 0:00:41]} 27. Qg4 {[%clk 0:00:59]}  Qxg4 {[%clk 0:00:40]} 28. hxg4 {[%clk 0:01:00]}  Rd5 {[%clk 0:00:23]} 29. Rb1 {[%clk 0:00:53]}  b5 {[%clk 0:00:22]} 30. f3 {[%clk 0:00:49]}  e5 {[%clk 0:00:20]} 31. dxe5 {[%clk 0:00:49]}  Bxe5 {[%clk 0:00:09]} 32. Bxe5 {[%clk 0:00:48]}  Rexe5 {[%clk 0:00:10]} 33. Nf6+ {[%clk 0:00:48]}  Kf7 {[%clk 0:00:11]} 34. Nxd5 {[%clk 0:00:49]}  Rxd5 {[%clk 0:00:12]} 35. Rb2 {[%clk 0:00:45]}  a6 {[%clk 0:00:12]} 36. Kf2 {[%clk 0:00:44]}  Ke6 {[%clk 0:00:13]} 37. Ke3 {[%clk 0:00:44]}  Kd6 {[%clk 0:00:12]} 38. f4 {[%clk 0:00:44]}  Kc5 {[%clk 0:00:12]} 39. Rf2 {[%clk 0:00:44]}  Kc4 {[%clk 0:00:12]} 40. f5 {[%clk 0:00:44]}  Rd3+ {[%clk 0:00:09]} 41. Ke4 {[%clk 0:00:42]}  Rg3 {[%clk 0:00:05]} 42. f6 {[%clk 0:00:39]}  Rxg4+ {[%clk 0:00:05]} 43. Ke5 {[%clk 0:00:39]}  Rg5+ {[%clk 0:00:04]} 44. Ke6 {[%clk 0:00:38]}  Rg3 {[%clk 0:00:04]} 45. f7 {[%clk 0:00:37]} 1-0


[Site "https://www.chess.com"]

[Event "Titled Tuesday Blitz August 15 Early 2023"]
[White "Nakamura, Hikaru"]
[Black "Rodchenkov, Sergey D."]
[WhiteFideId "2016192"]
[BlackFideId "4168712"]
[WhiteElo "3239"]
[BlackElo "2513"]
[Result "1-0"]
[Round "5"]
[TimeControl "180+1"]
[Date "2023.08.15"]
[WhiteClock "0:01:20"]
[BlackClock "0:00:10"]
[Board "82"]

1. b3 {[%clk 0:02:53]}  d5 {[%clk 0:03:00]} 2. Bb2 {[%clk 0:02:54]}  Nf6 {[%clk 0:03:00]} 3. Nf3 {[%clk 0:02:53]}  c6 {[%clk 0:03:00]} 4. e3 {[%clk 0:02:48]}  Bg4 {[%clk 0:03:01]} 5. d4 {[%clk 0:02:47]}  Nbd7 {[%clk 0:03:00]} 6. Bd3 {[%clk 0:02:46]}  e6 {[%clk 0:03:00]} 7. c4 {[%clk 0:02:46]}  Be7 {[%clk 0:03:00]} 8. Qc2 {[%clk 0:02:46]}  O-O {[%clk 0:02:58]} 9. Nbd2 {[%clk 0:02:45]}  a5 {[%clk 0:02:57]} 10. a3 {[%clk 0:02:45]}  Bh5 {[%clk 0:02:53]} 11. Ne5 {[%clk 0:02:46]}  Kh8 {[%clk 0:02:46]} 12. f4 {[%clk 0:02:33]}  Nxe5 {[%clk 0:02:36]} 13. dxe5 {[%clk 0:02:32]}  Ng4 {[%clk 0:02:31]} 14. Nf1 {[%clk 0:02:32]}  Bc5 {[%clk 0:02:28]} 15. Bd4 {[%clk 0:02:25]}  Qb6 {[%clk 0:02:12]} 16. Bxc5 {[%clk 0:01:46]}  Qxc5 {[%clk 0:02:13]} 17. cxd5 {[%clk 0:01:47]}  Qxc2 {[%clk 0:01:29]} 18. Bxc2 {[%clk 0:01:47]}  cxd5 {[%clk 0:01:29]} 19. Bd1 {[%clk 0:01:47]}  Rfc8 {[%clk 0:00:52]} 20. h3 {[%clk 0:01:45]}  Rc3 {[%clk 0:00:52]} 21. hxg4 {[%clk 0:01:40]}  Bg6 {[%clk 0:00:53]} 22. Rh3 {[%clk 0:01:40]}  Rac8 {[%clk 0:00:49]} 23. Nd2 {[%clk 0:01:35]}  Bd3 {[%clk 0:00:43]} 24. Nf3 {[%clk 0:01:33]}  h6 {[%clk 0:00:39]} 25. Nd4 {[%clk 0:01:30]}  Be4 {[%clk 0:00:32]} 26. g5 {[%clk 0:01:23]}  Bxg2 {[%clk 0:00:25]} 27. Rg3 {[%clk 0:01:22]}  Be4 {[%clk 0:00:24]} 28. gxh6 {[%clk 0:01:23]}  g6 {[%clk 0:00:18]} 29. Nb5 {[%clk 0:01:24]}  Rd3 {[%clk 0:00:16]} 30. Nd6 {[%clk 0:01:24]}  Rcc3 {[%clk 0:00:16]} 31. Nxf7+ {[%clk 0:01:24]}  Kg8 {[%clk 0:00:15]} 32. Ng5 {[%clk 0:01:21]}  Bf5 {[%clk 0:00:14]} 33. Be2 {[%clk 0:01:19]}  Rxe3 {[%clk 0:00:12]} 34. Rxe3 {[%clk 0:01:20]}  Rxe3 {[%clk 0:00:10]} 35. Rc1 {[%clk 0:01:20]} 1-0


[Site "https://www.chess.com"]

[Event "Titled Tuesday Blitz August 15 Early 2023"]
[White "Itkis, Boris"]
[Black "Rakhimzhan_Alen"]
[WhiteFideId "1209167"]
[WhiteElo "2459"]
[BlackElo "2670"]
[Result "1-0"]
[Round "5"]
[TimeControl "180+1"]
[Date "2023.08.15"]
[WhiteClock "0:01:12"]
[BlackClock "0:00:00"]
[Board "85"]

1. c4 {[%clk 0:02:59]}  e5 {[%clk 0:02:57]} 2. Nc3 {[%clk 0:02:59]}  Bb4 {[%clk 0:02:55]} 3. Nd5 {[%clk 0:02:58]}  Be7 {[%clk 0:02:53]} 4. Nf3 {[%clk 0:02:58]}  d6 {[%clk 0:02:48]} 5. d4 {[%clk 0:02:56]}  exd4 {[%clk 0:02:41]} 6. Qxd4 {[%clk 0:02:50]}  Nf6 {[%clk 0:02:34]} 7. Nxe7 {[%clk 0:02:50]}  Qxe7 {[%clk 0:02:31]} 8. Bg5 {[%clk 0:02:50]}  Nc6 {[%clk 0:02:14]} 9. Qc3 {[%clk 0:02:50]}  Ne5 {[%clk 0:01:31]} 10. Nxe5 {[%clk 0:02:44]}  Qxe5 {[%clk 0:00:49]} 11. Qxe5+ {[%clk 0:02:43]}  dxe5 {[%clk 0:00:50]} 12. Bxf6 {[%clk 0:02:42]}  gxf6 {[%clk 0:00:51]} 13. O-O-O {[%clk 0:02:39]}  Ke7 {[%clk 0:00:49]} 14. e3 {[%clk 0:02:39]}  Be6 {[%clk 0:00:49]} 15. Kc2 {[%clk 0:02:38]}  a5 {[%clk 0:00:47]} 16. b3 {[%clk 0:02:35]}  a4 {[%clk 0:00:43]} 17. b4 {[%clk 0:02:35]}  b5 {[%clk 0:00:39]} 18. Kc3 {[%clk 0:02:31]}  a3 {[%clk 0:00:38]} 19. Be2 {[%clk 0:02:27]}  Rhc8 {[%clk 0:00:29]} 20. Rd2 {[%clk 0:02:19]}  c5 {[%clk 0:00:24]} 21. cxb5 {[%clk 0:02:14]}  Ra4 {[%clk 0:00:18]} 22. Bd1 {[%clk 0:01:12]}  cxb4+ {[%clk 0:00:00]} 23. Kd3 {[%clk 0:01:12]} 1-0


[Site "https://www.chess.com"]

[Event "Titled Tuesday Blitz August 15 Early 2023"]
[White "Iskusnyh, Sergei"]
[Black "Mrudul Dehankar"]
[WhiteFideId "4120027"]
[BlackFideId "25096990"]
[WhiteElo "2635"]
[BlackElo "2452"]
[Result "1-0"]
[Round "5"]
[TimeControl "180+1"]
[Date "2023.08.15"]
[WhiteClock "0:00:06"]
[BlackClock "0:00:00"]
[Board "88"]

1. d4 {[%clk 0:03:00]}  Nf6 {[%clk 0:02:58]} 2. c4 {[%clk 0:03:00]}  e6 {[%clk 0:02:58]} 3. g3 {[%clk 0:03:00]}  Bb4+ {[%clk 0:02:58]} 4. Bd2 {[%clk 0:02:59]}  Qe7 {[%clk 0:02:58]} 5. Bg2 {[%clk 0:02:58]}  Nc6 {[%clk 0:02:53]} 6. e3 {[%clk 0:02:52]}  Bxd2+ {[%clk 0:02:26]} 7. Nxd2 {[%clk 0:02:53]}  O-O {[%clk 0:02:05]} 8. Ne2 {[%clk 0:02:46]}  d6 {[%clk 0:02:00]} 9. O-O {[%clk 0:02:23]}  e5 {[%clk 0:02:00]} 10. d5 {[%clk 0:02:22]}  Nb4 {[%clk 0:01:49]} 11. a3 {[%clk 0:02:16]}  Nd3 {[%clk 0:01:47]} 12. Qc2 {[%clk 0:02:08]}  Nc5 {[%clk 0:01:32]} 13. b4 {[%clk 0:02:07]}  Ncd7 {[%clk 0:01:29]} 14. Nc3 {[%clk 0:01:56]}  Re8 {[%clk 0:01:28]} 15. Rac1 {[%clk 0:01:22]}  Nf8 {[%clk 0:01:25]} 16. Nb3 {[%clk 0:01:16]}  Bd7 {[%clk 0:01:13]} 17. c5 {[%clk 0:01:15]}  b6 {[%clk 0:01:04]} 18. c6 {[%clk 0:01:11]}  Bc8 {[%clk 0:00:59]} 19. a4 {[%clk 0:01:04]}  h5 {[%clk 0:00:52]} 20. a5 {[%clk 0:01:01]}  Ng6 {[%clk 0:00:38]} 21. Ra1 {[%clk 0:00:59]}  b5 {[%clk 0:00:25]} 22. Nxb5 {[%clk 0:00:56]}  Ba6 {[%clk 0:00:24]} 23. Nc3 {[%clk 0:00:50]}  Bxf1 {[%clk 0:00:23]} 24. Bxf1 {[%clk 0:00:50]}  h4 {[%clk 0:00:20]} 25. Nd2 {[%clk 0:00:43]}  Ng4 {[%clk 0:00:14]} 26. Qf5 {[%clk 0:00:39]}  Nh6 {[%clk 0:00:13]} 27. Qh5 {[%clk 0:00:38]}  Qf6 {[%clk 0:00:09]} 28. Nde4 {[%clk 0:00:32]}  Qf5 {[%clk 0:00:07]} 29. Qxf5 {[%clk 0:00:26]}  Nxf5 {[%clk 0:00:07]} 30. g4 {[%clk 0:00:26]}  Nfe7 {[%clk 0:00:07]} 31. g5 {[%clk 0:00:18]}  Rab8 {[%clk 0:00:04]} 32. b5 {[%clk 0:00:18]}  Kh7 {[%clk 0:00:02]} 33. Bh3 {[%clk 0:00:18]}  Rf8 {[%clk 0:00:03]} 34. Bd7 {[%clk 0:00:14]}  f5 {[%clk 0:00:03]} 35. Nd2 {[%clk 0:00:13]}  f4 {[%clk 0:00:02]} 36. e4 {[%clk 0:00:13]}  f3 {[%clk 0:00:02]} 37. Nc4 {[%clk 0:00:11]}  Rf4 {[%clk 0:00:03]} 38. b6 {[%clk 0:00:10]}  axb6 {[%clk 0:00:03]} 39. axb6 {[%clk 0:00:10]}  cxb6 {[%clk 0:00:01]} 40. Nxd6 {[%clk 0:00:10]}  Rbf8 {[%clk 0:00:01]} 41. c7 {[%clk 0:00:10]}  h3 {[%clk 0:00:01]} 42. c8=Q {[%clk 0:00:09]}  Nxc8 {[%clk 0:00:02]} 43. Nxc8 {[%clk 0:00:10]}  Nh4 {[%clk 0:00:02]} 44. Nd6 {[%clk 0:00:08]}  g6 {[%clk 0:00:01]} 45. Ne8 {[%clk 0:00:07]}  Kh8 {[%clk 0:00:02]} 46. Nf6 {[%clk 0:00:07]}  Ng2 {[%clk 0:00:00]} 47. Bxh3 {[%clk 0:00:06]} 1-0


[Site "https://www.chess.com"]